bitfinex-derivatives/quotes_BNBF0:USTF0_20250330
["timestamp","ask_amount","ask_price","bid_price","bid_amount"]
[1743355367004,1.339,600.6,599.54,0.33358908]
[1743355368109,1.339,600.6,599.55,0.29000967]
[1743355371804,1.62,600.59,599.55,0.29000967]
[1743355372410,1.62,600.59,599.65,2.5305137]
[1743355373011,1.24844102,600.58,599.65,2.5305137]
[1743355373511,2.86844102,600.59,599.59,0.28996979]
[1743355374715,1.62,600.59,599.59,0.28996979]
[1743355375615,1.62,600.59,599.62,2.5305137]
[1743355376714,1.187,600.58,599.62,2.5305137]
[1743355376910,1.187,600.58,599.63,2.5305137]
[1743355377106,1.24844102,600.57,599.63,2.5305137]
[1743355377812,1.24844102,600.56,599.63,2.5305137]
[1743355378315,1.24844102,600.57,599.6,0.28997342]
[1743355379016,1.24844102,600.56,599.54,0.33358908]
[1743355379810,1.187,600.58,599.54,0.33358908]
[1743355380317,1.187,600.58,599.55,0.29000604]
[1743355380719,0.33301696,600.57,599.55,0.29000604]
[1743355381614,1.24844102,600.56,599.55,0.29000604]
[1743355382019,5.16180594,600.56,599.54,0.33358908]
[1743355382219,5.16180594,600.56,599.55,0.29003505]
[1743355382220,4.20339997,600.55,599.55,0.29003505]
[1743355382412,1.50514035,600.54,599.55,0.29003505]
[1743355382614,0.33303914,600.53,599.55,0.29003505]
[1743355383319,1.83817949,600.53,599.55,0.29003505]
[1743355383722,0.33303914,600.53,599.55,0.29003505]
[1743355384516,1.379,600.52,599.55,0.29003505]
[1743355385022,0.33305024,600.51,599.55,0.29003505]
[1743355386125,1.50265788,600.5,599.55,0.29003505]
[1743355386324,1.83571921,600.49,599.55,0.29003505]
[1743355386524,1.83572475,600.48,599.55,0.29003505]
[1743355386826,1.8357303,600.47,599.55,0.29003505]
[1743355387024,1.83573585,600.46,599.55,0.29003505]
[1743355387319,1.8357414,600.45,599.55,0.29003505]
[1743355387525,0.33308906,600.44,599.55,0.29003505]
[1743355387727,1.83574694,600.44,599.55,0.29003505]
[1743355387924,0.33308906,600.44,599.55,0.29003505]
[1743355388125,2.7510989,600.43,599.55,0.29003505]
[1743355388424,1.24844102,600.42,599.55,0.29003505]
[1743355389019,1.24844102,600.41,599.55,0.29003505]
[1743355389527,1.24844102,600.4,599.55,0.29003505]
[1743355389926,1.24844102,600.39,599.55,0.29003505]
[1743355390226,1.50265788,600.38,599.55,0.29003505]
[1743355390623,1.24844102,600.37,599.55,0.29003505]
[1743355390821,1.50265788,600.36,598.85,2.5305137]
[1743355391023,1.83579688,600.35,598.87,0.33396229]
[1743355391225,1.83580243,600.34,599.4,0.29018378]
[1743355391425,1.83580798,600.33,599.4,0.29018378]
[1743355391625,1.83581353,600.32,598.87,0.33396229]
[1743355391927,1.83581908,600.31,598.87,0.33396229]
[1743355392121,1.83582462,600.3,598.87,0.33396229]
[1743355392327,1.50265788,600.29,598.88,0.29019104]
[1743355392629,1.83583573,600.28,598.89,0.33395114]
[1743355392825,1.83584128,600.27,598.89,0.33395114]
[1743355393125,1.83584683,600.26,598.89,0.33395114]
[1743355393329,1.50265788,600.25,598.89,0.33395114]
[1743355393626,1.50265788,600.24,598.89,0.33395114]
[1743355393826,1.50265788,600.23,598.89,0.33395114]
[1743355394127,1.58162997,600.26,598.89,0.33395114]
[1743355394520,1.24844102,600.22,598.89,0.33395114]
[1743355395123,1.24844102,600.25,598.89,0.33395114]
[1743355395928,0.33318895,600.26,598.89,0.33395114]
[1743355399327,1.423,600.25,598.89,0.33395114]
[1743355400327,1.348,600.24,598.89,0.33395114]
[1743355412337,1.348,600.24,598.97,2.5305137]
[1743355412544,1.348,600.24,598.98,0.33390096]
[1743355413244,1.348,600.24,598.98,2.86441466]
[1743355414242,1.192,600.23,598.98,2.86441466]
[1743355416341,1.192,600.23,599.0,2.5305137]
[1743355416543,1.192,600.23,599.01,0.33388424]
[1743355419643,1.192,600.23,599.03,2.5305137]
[1743355419843,1.192,600.23,599.04,0.33386752]
[1743355420043,1.432,600.22,599.04,0.33386752]
[1743355421049,1.601,600.21,599.04,0.33386752]
[1743355425350,1.601,600.21,599.16,2.5305137]
[1743355425549,1.601,600.21,599.17,0.33379508]
[1743355427053,1.601,600.21,599.26,2.5305137]
[1743355428645,1.601,600.21,599.34,2.5305137]
[1743355430154,1.601,600.21,599.42,2.5305137]
[1743355430953,3.10497071,600.21,599.42,2.5305137]
[1743355431560,1.24596538,600.2,599.42,2.5305137]
[1743355431758,1.24596538,600.2,599.2,0.2901354]
[1743355432259,1.24596538,600.19,599.2,0.2901354]
[1743355432862,1.24596538,600.18,599.17,0.33379508]
[1743355433558,1.24596538,600.17,599.17,0.33379508]
[1743355434260,1.24596538,600.17,599.18,0.29019951]
[1743355434457,1.24596538,600.16,599.18,0.29019951]
[1743355434957,1.24596538,600.15,599.18,0.29019951]
[1743355435755,1.24596538,600.15,599.17,0.33379508]
[1743355435960,1.24596538,600.14,599.17,0.33379508]
[1743355436160,1.24596538,600.14,599.18,0.29020556]
[1743355436562,1.24596538,600.13,599.18,0.29020556]
[1743355437155,1.24596538,600.12,599.18,0.29020556]
[1743355437757,1.24596538,600.11,599.18,0.29020556]
[1743355438465,1.24596538,600.2,599.18,0.29020556]
[1743355439062,1.24596538,600.19,599.17,0.33379508]
[1743355439263,1.24596538,600.19,599.18,0.2901354]
[1743355439765,1.24596538,600.18,599.18,0.2901354]
[1743355440066,1.24596538,600.2,599.18,0.2901354]
[1743355440261,1.154,600.17,599.18,0.2901354]
[1743355441566,1.154,600.17,599.19,0.33378394]
[1743355445262,1.59,600.16,599.19,0.33378394]
[1743355445462,3.274,600.16,599.19,0.33378394]
[1743355449370,1.24673235,600.15,599.19,0.33378394]
[1743355450072,1.24673235,600.14,599.19,0.33378394]
[1743355450771,1.24673235,600.13,599.19,0.33378394]
[1743355451271,1.24673235,600.12,599.19,0.33378394]
[1743355451970,1.50507137,600.14,599.19,0.33378394]
[1743355451971,1.24673235,600.11,599.19,0.33378394]
[1743355452571,1.24673235,600.1,599.19,0.33378394]
[1743355453470,1.24673235,600.09,599.19,0.33378394]
[1743355453966,1.24673235,600.08,599.19,0.33378394]
[1743355454366,1.50416712,600.14,599.19,0.33378394]
[1743355454568,4.52073235,600.16,599.19,0.33378394]
[1743355454765,1.5041665,600.15,599.19,0.33378394]
[1743355454968,1.24673235,600.14,599.19,0.33378394]
[1743355455270,1.57999347,600.13,599.19,0.33378394]
[1743355455466,0.33326667,600.12,599.19,0.33378394]
[1743355455866,0.33326667,600.12,599.18,0.29020072]
[1743355456471,1.24673235,600.11,599.18,0.29020072]
[1743355456667,0.33327778,600.1,599.18,0.29020072]
[1743355456867,1.58001013,600.1,598.76,2.5305137]
[1743355457066,1.58001013,600.1,598.77,0.33401807]
[1743355457271,1.24673235,600.09,599.18,0.29027334]
[1743355457471,0.33328889,600.08,598.77,0.33401807]
[1743355458271,1.24673235,600.07,598.77,0.33401807]
[1743355458467,0.3333,600.06,598.77,0.33401807]
[1743355458875,0.3333,600.06,598.78,0.29028303]
[1743355459073,0.3333,600.06,598.79,0.33400691]
[1743355461875,1.24673235,600.05,598.79,0.33400691]
[1743355462676,1.24673235,600.04,598.79,0.33400691]
[1743355463375,1.24673235,600.05,598.79,0.33400691]
[1743355463972,0.3333,600.06,598.79,0.33400691]
[1743355471082,1.59,600.16,598.79,0.33400691]
[1743355473083,1.621,600.15,598.84,2.5305137]
[1743355473283,1.621,600.15,598.86,0.33396787]
[1743355476288,1.275,600.14,598.86,0.33396787]
[1743355476488,1.275,600.14,598.87,2.5305137]
[1743355476791,1.275,600.14,598.89,0.33395114]
[1743355477585,1.636,600.13,598.89,0.33395114]
[1743355478780,1.115,600.12,598.89,0.33395114]
[1743355486305,1.115,600.12,598.91,2.5305137]
[1743355486506,1.115,600.12,598.93,0.33392883]
[1743355493107,1.115,600.12,598.98,2.5305137]
[1743355493609,1.505,600.11,598.98,2.5305137]
[1743355493804,1.505,600.11,599.0,0.33388981]
[1743355494010,1.585,600.1,599.0,0.33388981]
[1743355494910,1.585,600.1,599.1,2.5305137]
[1743355495111,1.585,600.1,599.12,0.33382294]
[1743355502416,1.585,600.1,599.17,2.5305137]
[1743355502611,1.585,600.1,599.19,0.33378394]
[1743355502814,1.266,600.09,599.19,0.33378394]
[1743355505117,1.266,600.09,599.23,2.5305137]
[1743355505313,1.266,600.09,599.25,0.33375052]
[1743355506114,1.266,600.09,599.25,2.86426422]
[1743355507815,1.266,600.09,599.25,0.33375052]
[1743355515925,1.358,600.08,599.25,0.33375052]
[1743355516525,1.358,600.08,599.39,2.5305137]
[1743355516725,1.358,600.08,599.4,0.333667]
[1743355518428,1.358,600.08,599.45,2.5305137]
[1743355518728,1.358,600.08,599.45,2.86415286]
[1743355519722,1.358,600.08,599.47,2.5305137]
[1743355520121,2.709,600.08,599.47,2.5305137]
[1743355521128,2.709,600.08,599.59,2.5305137]
[1743355523025,2.709,600.08,599.66,2.5305137]
[1743355524826,2.709,600.08,599.45,0.33363916]
[1743355531139,3.814,600.08,599.45,0.33363916]
[1743355538243,3.814,600.08,599.46,2.5305137]
[1743355539937,3.814,600.08,599.45,0.33363916]
[1743355544542,5.087,600.08,599.45,0.33363916]
[1743355569167,5.087,600.08,599.63,2.5305137]
[1743355574767,5.087,600.08,599.62,2.5305137]
[1743355576267,5.087,600.08,599.6,2.5305137]
[1743355577869,5.087,600.08,599.56,0.29004592]
[1743355579873,5.087,600.08,599.45,0.33363916]
[1743355580374,5.087,600.08,599.56,0.29009428]
[1743355580569,5.087,600.08,599.45,0.33363916]
[1743355581775,5.087,600.08,599.46,0.2901487]
[1743355582979,5.087,600.08,599.45,0.33363916]
[1743355583373,5.087,600.08,599.46,0.29009428]
[1743355588980,5.087,600.08,599.45,0.33363916]
[1743355589280,5.087,600.08,599.46,0.29010637]
[1743355591976,5.087,600.08,599.45,0.33363916]
[1743355593282,5.087,600.08,599.46,0.29012814]
[1743355597882,5.087,600.08,599.47,0.33362803]
[1743355608491,5.087,600.08,599.69,2.5305137]
[1743355611606,5.087,600.08,599.68,2.5305137]
[1743355613208,5.087,600.08,599.67,2.5305137]
[1743355615212,5.087,600.08,599.6,0.28999517]
[1743355616011,5.087,600.08,599.56,2.5305137]
[1743355616206,5.087,600.08,599.56,2.86409165]
[1743355617112,5.087,600.08,599.56,0.33357795]
[1743355617306,5.087,600.08,599.57,0.29000846]
[1743355618723,5.087,600.08,599.58,0.33356683]
[1743355621023,5.087,600.08,599.67,2.5305137]
[1743355621224,5.087,600.08,599.67,2.86403046]
[1743355622728,5.087,600.08,599.67,0.33351676]
[1743355630126,5.087,600.08,599.77,2.5305137]
[1743355630327,5.087,600.08,599.78,0.3334556]
[1743355630727,0.28992752,601.18,599.78,0.3334556]
[1743355631128,1.50156281,601.23,599.78,0.3334556]
[1743355631325,1.83421974,601.22,599.78,0.3334556]
[1743355631527,1.50156281,601.21,599.78,0.3334556]
[1743355631732,1.50156281,601.2,599.78,0.3334556]
[1743355631931,1.50156281,601.19,599.78,0.3334556]
[1743355632126,1.50156281,601.18,599.78,0.3334556]
[1743355632325,1.80742476,601.17,599.78,0.3334556]
[1743355632531,1.50156281,601.16,599.78,0.3334556]
[1743355632723,4.73318741,601.15,599.78,0.3334556]
[1743355632923,5.81350179,601.14,599.78,0.3334556]
[1743355633123,1.50156281,601.13,599.78,0.3334556]
[1743355633331,4.73318741,601.12,599.78,0.3334556]
[1743355633526,3.90406331,601.11,599.78,0.3334556]
[1743355633733,0.33272334,601.1,599.78,0.3334556]
[1743355634133,1.502,601.09,599.78,0.3334556]
[1743355634332,0.33273441,601.08,599.78,0.3334556]
[1743355641035,3.56247437,601.08,599.78,0.3334556]
[1743355641439,1.63778394,601.06,599.78,0.3334556]
[1743355641639,4.22954518,601.05,599.78,0.3334556]
[1743355641840,5.13884221,601.04,599.78,0.3334556]
[1743355642034,5.47192384,601.03,599.78,0.3334556]
[1743355642232,4.56263235,601.02,599.78,0.3334556]
[1743355642434,4.56263235,601.01,599.78,0.3334556]
[1743355642736,7.79237231,601.0,599.78,0.3334556]
[1743355643036,3.89679417,600.99,599.78,0.3334556]
[1743355643240,1.49876699,600.98,599.78,0.3334556]
[1743355643440,1.49876699,600.97,599.78,0.3334556]
[1743355643640,1.49876699,600.96,599.78,0.3334556]
[1743355643841,1.49876699,600.95,599.78,0.3334556]
[1743355644034,1.49876699,600.94,599.78,0.3334556]
[1743355644234,1.49876699,600.93,599.78,0.3334556]
[1743355644438,4.72850695,600.92,599.78,0.3334556]
[1743355644639,1.49876699,600.91,599.78,0.3334556]
[1743355645541,1.24293254,600.9,599.78,0.3334556]
[1743355646135,1.24293254,600.89,599.78,0.3334556]
[1743355647035,1.24293254,600.88,599.78,0.3334556]
[1743355647942,1.49976723,600.97,599.78,0.3334556]
[1743355648238,0.33276762,601.02,599.78,0.3334556]
[1743355648844,2.7423129,601.01,599.78,0.3334556]
[1743355649038,2.74308556,601.01,599.78,0.3334556]
[1743355649238,1.24254567,601.01,599.78,0.3334556]
[1743355650041,0.33276762,601.02,599.78,0.3334556]
[1743355654043,1.097,601.14,599.78,0.3334556]
[1743355655244,1.502,601.09,599.78,0.3334556]
[1743355657148,1.136,601.08,599.78,0.3334556]
[1743355657948,2.156,601.08,599.78,0.3334556]
[1743355661754,1.24135999,601.07,599.78,0.3334556]
[1743355662350,2.156,601.08,599.78,0.3334556]
[1743355664156,2.156,601.08,599.78,2.8639693]
[1743355665754,2.156,601.08,599.85,2.5305137]
[1743355666056,2.156,601.08,599.87,0.33340557]
[1743355670353,1.24212135,601.07,599.87,0.33340557]
[1743355670754,2.74244187,601.07,599.87,0.33340557]
[1743355670953,2.74244187,601.06,599.87,0.33340557]
[1743355671153,1.50032052,601.05,599.87,0.33340557]
[1743355671356,1.50032052,601.04,599.87,0.33340557]
[1743355671558,1.50032052,601.03,599.87,0.33340557]
[1743355671754,0.33276762,601.02,599.87,0.33340557]
[1743355672159,3.22951552,601.01,599.87,0.33340557]
[1743355672359,1.50047216,601.0,599.87,0.33340557]
[1743355672760,0.33276762,601.02,599.87,0.33340557]
[1743355676763,1.3,601.01,599.87,0.33340557]
[1743355676958,0.3327787,601.0,599.87,0.33340557]
[1743355677761,1.4,600.99,599.87,0.33340557]
[1743355677962,0.33278977,600.98,599.87,0.33340557]
[1743355678163,1.83476761,600.98,599.87,0.33340557]
[1743355678966,1.50197784,600.97,599.87,0.33340557]
[1743355679266,1.83477869,600.96,599.87,0.33340557]
[1743355679463,1.83478422,600.95,599.87,0.33340557]
[1743355679668,1.50197784,600.94,599.87,0.33340557]
[1743355679860,1.8347953,600.93,599.87,0.33340557]
[1743355680065,1.83480084,600.92,599.87,0.33340557]
[1743355680364,1.83480638,600.91,599.87,0.33340557]
[1743355680567,1.83481192,600.9,599.87,0.33340557]
[1743355680867,0.33283962,600.89,599.87,0.33340557]
[1743355681469,1.03,600.88,599.87,0.33340557]
[1743355681768,0.33285069,600.87,599.87,0.33340557]
[1743355682370,1.24212135,600.86,599.87,0.33340557]
[1743355682574,0.33286177,600.85,599.87,0.33340557]
[1743355682975,1.57498312,600.85,599.87,0.33340557]
[1743355683676,0.33286177,600.85,599.87,0.33340557]
[1743355694685,1.24212135,600.84,599.87,0.33340557]
[1743355695385,1.092,600.83,599.87,0.33340557]
[1743355695585,3.34712135,600.83,599.87,0.33340557]
[1743355695785,1.50394534,600.82,599.87,0.33340557]
[1743355696182,2.74606669,600.82,599.87,0.33340557]
[1743355696581,1.24212135,600.82,599.87,0.33340557]
[1743355696786,1.24212135,600.81,599.87,0.33340557]
[1743355697786,1.24212135,600.8,599.87,0.33340557]
[1743355698487,1.24212135,600.79,599.87,0.33340557]
[1743355699294,1.24212135,600.78,599.87,0.33340557]
[1743355700391,1.24212135,600.77,599.87,0.33340557]
[1743355701293,1.24212135,600.76,599.87,0.33340557]
[1743355701902,1.24212135,600.81,599.87,0.33340557]
[1743355702290,2.105,600.83,599.87,0.33340557]
[1743355708196,3.273,600.83,599.87,0.33340557]
[1743355709196,1.50114082,600.82,599.87,0.33340557]
[1743355710597,1.24285997,600.81,599.87,0.33340557]
[1743355710892,2.74400079,600.81,599.87,0.33340557]
[1743355711291,1.24285997,600.8,599.87,0.33340557]
[1743355711697,1.24285997,600.79,599.87,0.33340557]
[1743355712001,1.411,600.78,599.87,0.33340557]
[1743355712495,2.65385997,600.78,599.87,0.33340557]
[1743355713702,1.411,600.78,599.87,0.33340557]
[1743355713897,1.404,600.77,599.87,0.33340557]
[1743355715301,1.404,600.77,599.92,2.5305137]
[1743355717796,1.404,600.77,599.93,2.5305137]
[1743355718803,1.404,600.77,599.94,2.5305137]
[1743355719801,1.404,600.77,599.91,0.28986473]
[1743355721103,1.404,600.77,599.84,2.5305137]
[1743355721303,1.404,600.77,599.91,0.28988888]
[1743355721601,1.404,600.77,599.84,2.5305137]
[1743355722405,1.404,600.77,599.85,0.28988888]
[1743355724209,1.24285997,600.76,599.81,2.5305137]
[1743355724507,0.33291718,600.75,599.81,2.5305137]
[1743355724707,0.33291718,600.75,599.54,2.5305137]
[1743355724905,1.24285997,600.74,599.54,2.5305137]
[1743355725104,0.33292827,600.73,599.54,2.5305137]
[1743355725404,3.07906772,600.73,599.55,0.28994684]
[1743355725611,1.50327948,600.72,599.55,0.28994684]
[1743355725908,1.8365673,600.71,599.55,0.28994684]
[1743355726108,0.33294489,600.7,599.55,0.28994684]
[1743355726309,1.50362795,600.69,599.55,0.28994684]
[1743355726504,1.50362795,600.68,599.55,0.28994684]
[1743355726707,1.83658947,600.67,599.55,0.28994684]
[1743355726906,0.33296152,600.67,599.55,0.28994684]
[1743355727104,2.80262795,600.66,599.44,2.5305137]
[1743355727304,1.50362795,600.65,599.44,2.5305137]
[1743355727506,1.50362795,600.64,599.44,2.5305137]
[1743355727705,1.50362795,600.63,599.44,2.5305137]
[1743355727906,1.83661719,600.62,599.09,2.5305137]
[1743355728104,1.83662273,600.61,599.11,0.33382851]
[1743355728409,1.50362795,600.6,599.45,0.29000121]
[1743355728610,1.50362795,600.59,599.11,0.33382851]
[1743355728807,1.24285997,600.6,599.11,0.33382851]
[1743355728808,1.50362795,600.58,599.11,0.33382851]
[1743355729009,1.83664491,600.57,599.11,0.33382851]
[1743355729209,5.07119584,600.56,599.11,0.33382851]
[1743355729409,5.15502616,600.55,599.12,0.2900701]
[1743355729709,2.41619339,600.54,599.13,0.33381736]
[1743355729910,1.50362795,600.53,599.13,0.33381736]
[1743355730110,1.83667264,600.52,599.13,0.33381736]
[1743355730412,1.50362795,600.51,599.13,0.33381736]
[1743355730604,2.74648792,600.5,599.13,0.33381736]
[1743355730807,1.83668928,600.49,599.13,0.33381736]
[1743355731003,1.83669482,600.48,599.13,0.33381736]
[1743355731309,1.83670037,600.47,599.13,0.33381736]
[1743355731509,0.33307797,600.46,599.13,0.33381736]
[1743355732209,1.24285997,600.45,599.13,0.33381736]
[1743355732411,1.57594349,600.45,599.13,0.33381736]
[1743355732913,1.24285997,600.44,599.13,0.33381736]
[1743355733508,0.33308352,600.45,599.13,0.33381736]
[1743355734210,0.33308352,600.45,599.19,2.5305137]
[1743355734411,0.33308352,600.45,599.2,0.33377837]
[1743355747127,1.24285997,600.44,599.2,0.33377837]
[1743355747626,1.24285997,600.43,599.2,0.33377837]
[1743355748427,0.33308352,600.45,599.2,0.33377837]
[1743355748428,1.24285997,600.42,599.2,0.33377837]
[1743355749029,1.24285997,600.41,599.2,0.33377837]
[1743355749830,1.24285997,600.4,599.2,0.33377837]
[1743355750024,2.97285997,600.4,599.2,0.33377837]
[1743355750428,1.437,600.39,599.2,0.33377837]
[1743355751530,2.67985997,600.39,599.2,0.33377837]
[1743355751930,1.041,600.38,599.2,0.33377837]
[1743355752333,1.24285997,600.37,599.2,0.33377837]
[1743355754231,2.28385997,600.38,599.2,0.33377837]
[1743355754835,1.041,600.38,599.2,0.33377837]
[1743355755732,1.24285997,600.37,599.2,0.33377837]
[1743355756236,1.041,600.38,599.2,0.33377837]
[1743355758932,2.28069944,600.38,599.2,0.33377837]
[1743355759933,1.041,600.38,599.2,0.33377837]
[1743355762234,1.041,600.38,599.21,2.5305137]
[1743355762439,1.041,600.38,599.22,0.33376723]
[1743355770240,1.041,600.38,599.56,2.5305137]
[1743355770842,1.047,600.37,599.56,2.5305137]
[1743355772145,1.047,600.37,599.48,2.5305137]
[1743355773440,1.047,600.37,599.49,2.5305137]
[1743355774747,1.047,600.37,599.55,2.5305137]
[1743355775148,0.991,600.36,599.55,2.5305137]
[1743355776247,0.991,600.36,599.46,2.5305137]
[1743355777046,0.991,600.36,599.47,2.5305137]
[1743355778249,0.991,600.36,599.46,2.5305137]
[1743355779445,0.991,600.36,599.45,0.29003625]
[1743355780851,1.24750217,600.35,599.45,0.29003625]
[1743355781049,1.24750217,600.35,599.42,2.5305137]
[1743355781251,1.24750217,600.35,599.28,2.5305137]
[1743355781252,1.24750217,600.35,599.41,2.5305137]
[1743355781450,1.24750217,600.35,599.45,0.29007131]
[1743355781646,1.24750217,600.34,599.45,0.29007131]
[1743355782049,1.128,600.33,599.45,0.29007131]
[1743355782449,1.24750217,600.32,599.45,0.29007131]
[1743355782845,1.24750217,600.31,599.45,0.29007131]
[1743355783344,1.24750217,600.3,599.45,0.29007131]
[1743355783946,1.24750217,600.29,599.45,0.29007131]
[1743355784150,1.50674043,600.28,599.22,0.33376723]
[1743355784347,1.50674043,600.27,599.22,0.33376723]
[1743355784551,1.50674043,600.26,599.45,0.29010154]
[1743355784748,1.50674043,600.25,599.45,0.29010154]
[1743355784951,1.24750217,600.27,599.22,0.33376723]
[1743355785251,1.50860593,600.26,599.22,0.33376723]
[1743355785452,1.50860593,600.25,599.22,0.33376723]
[1743355785649,1.50860593,600.24,599.23,0.29012209]
[1743355785851,1.24986259,600.25,599.24,0.33375609]
[1743355786047,1.50913406,600.24,599.24,0.33375609]
[1743355786251,1.50913406,600.23,599.24,0.33375609]
[1743355786448,1.50913406,600.22,599.24,0.33375609]
[1743355786648,1.50913406,600.21,599.24,0.33375609]
[1743355786851,1.50913406,600.2,599.24,0.33375609]
[1743355787052,3.2499428,600.22,599.24,0.33375609]
[1743355787253,1.50936561,600.21,599.24,0.33375609]
[1743355787553,3.2499428,600.22,599.24,0.33375609]
[1743355787753,2.75920964,600.21,599.24,0.33375609]
[1743355787953,1.24986259,600.21,599.24,0.33375609]
[1743355788652,2.75915165,600.2,599.24,0.33375609]
[1743355788848,1.24986259,600.2,599.24,0.33375609]
[1743355789653,1.24986259,600.19,599.24,0.33375609]
[1743355790655,1.24986259,600.18,599.24,0.33375609]
[1743355791157,1.24986259,600.18,599.3,2.5305137]
[1743355791455,1.24986259,600.17,599.3,2.5305137]
[1743355792050,1.24986259,600.16,599.3,2.5305137]
[1743355792758,1.24986259,600.15,599.3,2.5305137]
[1743355793258,1.24986259,600.32,599.3,2.5305137]
[1743355794059,1.24986259,600.31,599.3,2.5305137]
[1743355794458,1.24986259,600.3,599.3,2.5305137]
[1743355794858,1.24986259,600.3,599.26,0.29013782]
[1743355795058,1.24986259,600.29,599.26,0.29013782]
[1743355795662,2.40586259,600.28,599.26,0.29013782]
[1743355796159,1.24986259,600.27,599.24,0.33375609]
[1743355797460,1.24986259,600.27,599.25,0.29022008]
[1743355797660,1.156,600.28,599.25,0.29022008]
[1743355799361,1.50854521,600.27,599.25,0.29022008]
[1743355799562,1.50854521,600.26,599.25,0.29022008]
[1743355799862,1.50854521,600.25,599.25,0.29022008]
[1743355800063,1.50854521,600.24,599.25,0.29022008]
[1743355800356,1.50854521,600.23,599.25,0.29022008]
[1743355800561,3.24975375,600.26,599.25,0.29022008]
[1743355800762,1.50854521,600.25,599.25,0.29022008]
[1743355800957,1.50854521,600.24,599.25,0.29022008]
[1743355801159,1.24986259,600.23,599.25,0.29022008]
[1743355801963,1.24986259,600.22,599.24,0.33375609]
[1743355802766,1.24986259,600.22,599.25,0.29016201]
[1743355802965,1.24986259,600.21,599.25,0.29016201]
[1743355803562,2.77686259,600.2,599.25,0.29016201]
[1743355804262,1.527,600.2,599.25,0.29016201]
[1743355805166,1.24823207,600.19,599.24,0.33375609]
[1743355805771,1.527,600.2,599.24,0.33375609]
[1743355805965,1.527,600.2,599.25,0.29016685]
[1743355807266,1.50652807,600.19,599.25,0.29016685]
[1743355807459,1.24786462,600.19,599.25,0.29016685]
[1743355807664,1.50652017,600.18,599.25,0.29016685]
[1743355807868,2.32386462,600.19,599.25,0.29016685]
[1743355808067,1.24786462,600.17,599.24,0.33375609]
[1743355808462,1.24786462,600.17,599.25,0.29014507]
[1743355808671,1.24786462,600.16,599.25,0.29014507]
[1743355809365,1.076,600.19,599.25,0.29014507]
[1743355811168,1.076,600.19,599.24,0.33375609]
[1743355811367,1.076,600.19,599.25,0.29011363]
[1743355817079,1.076,600.19,599.24,0.33375609]
[1743355817375,1.076,600.19,599.25,0.29011363]
[1743355820187,1.076,600.19,599.24,0.33375609]
[1743355820388,1.076,600.19,599.25,0.29012088]
[1743355823081,1.076,600.19,599.24,0.33375609]
[1743355824582,1.076,600.19,599.25,0.29019951]
[1743355825690,1.076,600.19,599.43,2.5305137]
[1743355827287,1.076,600.19,599.46,2.5305137]
[1743355828491,1.076,600.19,599.32,0.29011242]
[1743355828691,1.076,600.19,599.33,0.33370597]
[1743355829990,1.076,600.19,599.49,2.5305137]
[1743355830188,1.076,600.19,599.5,0.33361134]
[1743355831190,2.514,600.19,599.63,2.5305137]
[1743355832591,2.514,600.19,599.5,0.33361134]
[1743355836399,4.125,600.19,599.5,0.33361134]
[1743355852213,5.15,600.19,599.5,0.33361134]
[1743355864634,5.15,600.19,599.55,2.5305137]
[1743355864834,5.15,600.19,599.56,0.33357795]
[1743355865937,5.15,600.19,599.69,2.5305137]
[1743355866134,5.15,600.19,599.7,0.33350008]
[1743355873643,5.15,600.19,599.7,2.86401378]
[1743355875145,5.15,600.19,599.7,0.33350008]
[1743355888847,2.636,600.19,599.7,0.33350008]
[1743355889047,1.3376584,600.19,599.87,2.5305137]
[1743355889250,1.025,600.19,599.87,2.5305137]
[1743355890452,1.025,600.19,599.86,2.5305137]
[1743355891554,1.025,600.19,599.8,2.5305137]
[1743355892351,1.025,600.19,599.7,0.33350008]
[1743355893457,1.025,600.19,599.71,0.28997584]
[1743355894957,1.025,600.19,599.77,2.5305137]
[1743355895558,1.025,600.19,599.76,2.5305137]
[1743355897260,1.025,600.19,599.73,0.28995409]
[1743355898261,1.025,600.19,599.7,0.33350008]
[1743355899363,1.025,600.19,599.71,0.28997825]
[1743355904266,1.025,600.19,599.7,0.33350008]
[1743355904466,1.025,600.19,599.71,0.28999275]
[1743355907269,1.025,600.19,599.7,0.33350008]
[1743355907469,1.025,600.19,599.71,0.28997342]
[1743355910269,1.025,600.19,599.7,0.33350008]
[1743355910467,1.025,600.19,599.71,0.28997342]
[1743355913269,1.025,600.19,599.7,0.33350008]
[1743355913768,1.025,600.19,599.71,0.29001813]
[1743355916270,1.025,600.19,599.7,0.33350008]
[1743355917471,1.025,600.19,599.71,0.29002175]